bitfinex-derivatives/quotes_BNBF0:USTF0_20250220
["timestamp","ask_amount","ask_price","bid_price","bid_amount"]
[1740016282205,0.30719606,651.05,649.13,0.30810469]
[1740016282404,0.28254388,651.04,649.13,0.30810469]
[1740016283003,0.30719606,651.05,649.13,0.30810469]
[1740016283202,1.13371557,651.38,649.13,0.30810469]
[1740016285909,1.13371557,652.56,649.13,0.30810469]
[1740016286208,0.30656509,652.39,649.13,0.30810469]
[1740016286408,0.28219141,652.38,649.13,0.30810469]
[1740016286610,0.28219141,652.37,649.13,0.30810469]
[1740016286807,0.28219141,652.36,649.13,0.30810469]
[1740016287006,0.28219141,652.35,649.13,0.30810469]
[1740016287311,0.28219141,652.34,649.13,0.30810469]
[1740016287512,0.3066638,652.18,649.13,0.30810469]
[1740016287712,0.28219141,652.17,649.13,0.30810469]
[1740016287912,0.30673905,652.02,649.13,0.30810469]
[1740016288309,0.28219141,652.01,649.13,0.30810469]
[1740016288507,0.30680022,651.89,649.13,0.30810469]
[1740016288707,0.28219141,651.88,649.13,0.30810469]
[1740016288911,0.30685671,651.77,649.13,0.30810469]
[1740016289109,0.28219141,651.76,649.13,0.30810469]
[1740016289310,0.30687083,651.74,649.13,0.30810469]
[1740016289509,0.28219141,651.73,649.13,0.30810469]
[1740016289711,0.30688496,651.71,649.13,0.30810469]
[1740016289912,0.28219141,651.7,649.13,0.30810469]
[1740016290214,0.30689909,651.68,649.13,0.30810469]
[1740016290411,0.28219141,651.67,649.13,0.30810469]
[1740016290616,0.30691322,651.65,649.13,0.30810469]
[1740016290810,0.28219141,651.64,649.13,0.30810469]
[1740016291013,0.30692735,651.62,649.13,0.30810469]
[1740016291216,0.28219141,651.61,649.13,0.30810469]
[1740016291417,0.30694148,651.59,649.13,0.30810469]
[1740016291616,0.28219141,651.58,649.13,0.30810469]
[1740016291812,0.30695561,651.56,649.13,0.30810469]
[1740016292013,0.28219141,651.55,649.13,0.30810469]
[1740016292212,0.30695561,651.56,649.13,0.30810469]
[1740016292213,0.58915644,651.54,649.13,0.30810469]
[1740016292412,0.58916115,651.53,649.13,0.30810469]
[1740016292610,0.58916586,651.52,649.13,0.30810469]
[1740016292815,0.28219141,651.51,649.13,0.30810469]
[1740016293212,0.30697445,651.52,649.13,0.30810469]
[1740016293414,0.2822387,651.51,649.13,0.30810469]
[1740016294618,0.30697445,651.52,649.13,0.30810469]
[1740016296219,0.28218875,651.51,649.13,0.30810469]
[1740016296615,0.30697445,651.52,649.13,0.30810469]
[1740016297620,0.28220388,651.51,649.13,0.30810469]
[1740016298419,0.30698388,651.5,649.13,0.30810469]
[1740016298621,0.28220388,651.49,649.13,0.30810469]
[1740016298818,0.3069933,651.48,649.13,0.30810469]
[1740016299024,0.28220388,651.47,649.13,0.30810469]
[1740016299218,0.30700273,651.46,649.13,0.30810469]
[1740016299426,0.28220388,651.45,649.13,0.30810469]
[1740016299626,0.30701215,651.44,649.13,0.30810469]
[1740016299922,0.28220388,651.43,649.13,0.30810469]
[1740016300121,0.30702158,651.42,649.13,0.30810469]
[1740016300321,0.28220388,651.41,649.13,0.30810469]
[1740016300517,0.30703101,651.4,649.13,0.30810469]
[1740016300724,0.28220388,651.39,649.13,0.30810469]
[1740016301019,0.30704043,651.38,649.13,0.30810469]
[1740016301224,0.28220388,651.37,649.13,0.30810469]
[1740016301419,0.30704986,651.36,649.13,0.30810469]
[1740016301725,0.28220388,651.35,649.13,0.30810469]
[1740016305722,0.28220388,651.35,649.13,2.51896369]
[1740016306125,0.30704986,651.36,649.13,2.51896369]
[1740016306325,0.28226457,651.35,649.13,2.51896369]
[1740016306727,0.28226457,651.35,649.14,2.95834021]
[1740016306927,0.28226457,651.35,649.25,0.30804774]
[1740016310429,0.30704986,651.36,649.25,0.30804774]
[1740016312532,1.13371557,652.33,649.25,0.30804774]
[1740016312733,0.30664029,652.23,649.25,0.30804774]
[1740016312933,0.28214972,652.22,649.25,0.30804774]
[1740016313131,0.3066544,652.2,649.25,0.30804774]
[1740016313328,0.28214972,652.19,649.25,0.30804774]
[1740016313528,0.3066685,652.17,649.25,0.30804774]
[1740016313729,0.28214972,652.16,649.25,0.30804774]
[1740016313933,0.30668261,652.14,649.25,0.30804774]
[1740016314135,0.28214972,652.13,649.25,0.30804774]
[1740016314333,0.28214972,652.12,649.25,0.30804774]
[1740016314534,1.0294221,652.11,649.25,0.30804774]
[1740016314729,0.28214972,652.1,649.25,0.30804774]
[1740016314936,0.30674846,652.0,649.25,0.30804774]
[1740016315235,0.28214972,651.99,649.25,0.30804774]
[1740016315435,0.28214972,651.98,649.25,0.30804774]
[1740016315635,0.28214972,651.99,649.25,0.30804774]
[1740016315936,0.30676258,651.97,649.25,0.30804774]
[1740016316136,0.28214972,651.96,649.25,0.30804774]
[1740016316437,1.13371557,651.91,649.25,0.30804774]
[1740016316636,0.30680022,651.89,649.25,0.30804774]
[1740016316835,0.28214972,651.88,649.25,0.30804774]
[1740016317036,0.30681434,651.86,649.25,0.30804774]
[1740016317332,0.28214972,651.85,649.25,0.30804774]
[1740016317536,0.30682846,651.83,649.25,0.30804774]
[1740016317736,0.28214972,651.82,649.25,0.30804774]
[1740016317937,0.30684258,651.8,649.25,0.30804774]
[1740016318131,0.28214972,651.79,649.25,0.30804774]
[1740016319235,0.30685671,651.77,649.25,0.30804774]
[1740016319435,0.28214972,651.76,649.25,0.30804774]
[1740016319634,0.30687083,651.74,649.25,0.30804774]
[1740016320031,0.28214972,651.73,649.25,0.30804774]
[1740016320237,0.30688025,651.72,649.25,0.30804774]
[1740016320437,0.28214972,651.71,649.25,0.30804774]
[1740016320633,0.28214972,651.7,649.25,0.30804774]
[1740016320837,0.28214972,651.69,649.25,0.30804774]
[1740016321037,0.3069038,651.67,649.25,0.30804774]
[1740016321238,0.28214972,651.66,649.25,0.30804774]
[1740016321939,0.30691322,651.65,649.25,0.30804774]
[1740016322134,0.28214972,651.64,649.25,0.30804774]
[1740016322332,0.30692735,651.62,649.25,0.30804774]
[1740016322736,0.28214972,651.61,649.35,1.36583643]
[1740016323133,0.28214972,651.61,649.46,0.30794814]
[1740016323531,0.30694148,651.59,649.46,0.30794814]
[1740016323735,0.28214972,651.58,649.46,0.30794814]
[1740016323932,0.3069509,651.57,649.46,0.30794814]
[1740016324139,0.28214972,651.56,649.46,0.30794814]
[1740016324340,0.30696032,651.55,649.46,0.30794814]
[1740016324639,0.28214972,651.54,649.46,0.30794814]
[1740016324839,0.30696974,651.53,649.46,0.30794814]
[1740016325039,0.28214972,651.52,649.46,0.30794814]
[1740016325933,0.30697917,651.51,649.46,0.30794814]
[1740016326137,0.28214972,651.5,649.46,0.30794814]
[1740016326338,0.30698859,651.49,649.46,0.30794814]
[1740016326633,0.28214972,651.48,649.46,0.30794814]
[1740016326834,0.30699801,651.47,649.46,0.30794814]
[1740016327139,0.28214972,651.46,649.46,0.30794814]
[1740016327441,0.30700744,651.45,649.46,0.30794814]
[1740016327739,0.28214972,651.44,649.46,0.30794814]
[1740016328540,0.30701687,651.43,649.46,0.30794814]
[1740016328734,0.28214972,651.42,649.46,0.30794814]
[1740016328937,0.30702629,651.41,649.46,0.30794814]
[1740016329133,0.28214972,651.4,649.46,0.30794814]
[1740016329341,0.30703572,651.39,649.46,0.30794814]
[1740016329640,0.28214972,651.38,649.46,0.30794814]
[1740016329832,0.30704515,651.37,649.46,0.30794814]
[1740016330033,0.28214972,651.36,649.46,0.30794814]
[1740016331141,0.30705457,651.35,649.46,0.30794814]
[1740016331342,0.28214972,651.34,649.46,0.30794814]
[1740016331537,0.307064,651.33,649.46,0.30794814]
[1740016331735,0.28214972,651.32,649.46,0.30794814]
[1740016331940,0.58921844,651.32,649.46,0.30794814]
[1740016332136,0.58922315,651.31,649.46,0.30794814]
[1740016332339,0.58922787,651.3,649.46,0.30794814]
[1740016332539,0.58923258,651.29,649.46,0.30794814]
[1740016332739,0.5892373,651.28,649.46,0.30794814]
[1740016332936,0.58924201,651.27,649.46,0.30794814]
[1740016333137,0.28214972,651.26,649.46,0.30794814]
[1740016334042,0.30709229,651.27,649.46,0.30794814]
[1740016335143,0.2823374,651.26,649.46,0.30794814]
[1740016335835,0.30709229,651.27,649.46,0.30794814]
[1740016343846,0.28244575,651.26,649.46,0.30794814]
[1740016344046,0.30710172,651.25,649.46,0.30794814]
[1740016344240,0.28244575,651.24,649.46,0.30794814]
[1740016344441,0.30711115,651.23,649.46,0.30794814]
[1740016344645,0.28244575,651.22,649.46,0.30794814]
[1740016344846,0.30712059,651.21,649.46,0.30794814]
[1740016345145,0.28244575,651.2,649.46,0.30794814]
[1740016345446,0.30713002,651.19,649.46,0.30794814]
[1740016346042,0.28247382,651.18,649.46,0.30794814]
[1740016346246,0.30713945,651.17,649.46,0.30794814]
[1740016346443,0.28247382,651.16,649.46,0.30794814]
[1740016346749,0.30714889,651.15,649.46,0.30794814]
[1740016346948,0.28247382,651.14,649.46,0.30794814]
[1740016347249,0.30715832,651.13,649.46,0.30794814]
[1740016347450,0.28247382,651.12,649.46,0.30794814]
[1740016347749,0.30716775,651.11,649.46,0.30794814]
[1740016352651,0.28245582,651.1,649.46,0.30794814]
[1740016352955,0.30717719,651.09,649.46,0.30794814]
[1740016353748,0.28248545,651.08,649.46,0.30794814]
[1740016354855,0.30717719,651.09,649.46,0.30794814]
[1740016356753,0.28253468,651.08,649.46,0.30794814]
[1740016356950,0.30719134,651.06,649.46,0.30794814]
[1740016357153,0.28253468,651.05,649.46,0.30794814]
[1740016358152,0.3072055,651.03,649.46,0.30794814]
[1740016358350,0.28253468,651.02,649.46,0.30794814]
[1740016358552,0.30721966,651.0,649.46,0.30794814]
[1740016358751,0.28253468,650.99,649.46,0.30794814]
[1740016359055,0.3072291,650.98,649.46,0.30794814]
[1740016359850,0.28256385,650.97,649.46,0.30794814]
[1740016360051,0.30723854,650.96,649.46,0.30794814]
[1740016360253,0.28256385,650.95,649.46,0.30794814]
[1740016360454,0.30724797,650.94,649.46,0.30794814]
[1740016360649,0.28256385,650.93,649.46,0.30794814]
[1740016360951,0.30725742,650.92,649.46,0.30794814]
[1740016361152,0.28256385,650.91,649.46,0.30794814]
[1740016361452,0.30726686,650.9,649.46,0.30794814]
[1740016361651,0.28256385,650.89,649.46,0.30794814]
[1740016361853,0.3072763,650.88,649.46,0.30794814]
[1740016362052,0.28256385,650.87,649.46,0.30794814]
[1740016362253,0.30728574,650.86,649.46,0.30794814]
[1740016362551,0.28256385,650.85,649.46,0.30794814]
[1740016362756,0.30729518,650.84,649.46,0.30794814]
[1740016363057,0.28256385,650.83,649.46,0.30794814]
[1740016363257,0.30730463,650.82,649.46,0.30794814]
[1740016363456,0.28256385,650.81,649.46,0.30794814]
[1740016363653,0.30731407,650.8,649.46,0.30794814]
[1740016363857,0.28256385,650.79,649.46,0.30794814]
[1740016366457,0.30732351,650.78,649.46,0.30794814]
[1740016366661,0.28256385,650.77,649.46,0.30794814]
[1740016368359,0.30733296,650.76,649.46,0.30794814]
[1740016368557,0.28256385,650.75,649.46,0.30794814]
[1740016368756,0.58990153,650.75,649.46,0.30794814]
[1740016368956,0.28256385,650.74,649.46,0.30794814]
[1740016371464,0.30733768,650.75,649.46,0.30794814]
[1740016376567,0.28255234,650.74,649.46,0.30794814]
[1740016377171,0.30733768,650.75,649.46,0.30794814]
[1740016386579,0.28259087,650.74,649.46,0.30794814]
[1740016386779,0.30734713,650.73,649.46,0.30794814]
[1740016387280,0.28261387,650.72,649.46,0.30794814]
[1740016387478,0.30735657,650.71,649.46,0.30794814]
[1740016387677,0.28261387,650.7,649.46,0.30794814]
[1740016387878,0.30736602,650.69,649.46,0.30794814]
[1740016388278,0.28261387,650.68,649.46,0.30794814]
[1740016388478,0.30737547,650.67,649.46,0.30794814]
[1740016390283,0.282642,650.66,649.46,0.30794814]
[1740016392184,0.30738492,650.65,649.46,0.30794814]
[1740016392384,0.282642,650.64,649.46,0.30794814]
[1740016392584,0.30739437,650.63,649.46,0.30794814]
[1740016392885,0.282642,650.62,649.46,0.30794814]
[1740016393185,0.30740382,650.61,649.46,0.30794814]
[1740016393378,0.282642,650.6,649.46,0.30794814]
[1740016395085,0.30740382,650.61,649.46,0.30794814]
[1740016400285,0.28264246,650.6,649.46,0.30794814]
[1740016400481,0.590051,650.6,649.46,0.30794814]
[1740016400686,0.28264246,650.59,649.46,0.30794814]
[1740016402289,0.2826419,650.58,649.46,0.30794814]
[1740016402482,0.30740854,650.6,649.46,0.30794814]
[1740016402686,0.28264034,650.59,649.46,0.30794814]
[1740016403584,0.30741799,650.58,649.46,0.30794814]
[1740016403790,0.28264034,650.57,649.46,0.30794814]
[1740016405088,0.30741799,650.58,649.46,0.30794814]
[1740016405886,0.28264695,650.57,649.46,0.30794814]
[1740016406089,0.30741799,650.58,649.46,0.30794814]
[1740016406387,0.28264724,650.57,649.46,0.30794814]
[1740016406588,0.59006996,650.57,649.46,0.30794814]
[1740016406791,0.28264724,650.56,649.46,0.30794814]
[1740016409190,0.30743217,650.55,649.46,0.30794814]
[1740016409492,0.28264724,650.54,649.46,0.30794814]
[1740016409696,0.59008413,650.54,649.46,0.30794814]
[1740016409997,0.28264724,650.53,649.46,0.30794814]
[1740016410398,0.30743689,650.54,649.46,0.30794814]
[1740016441321,0.30743689,650.54,649.43,0.30796236]
[1740016442128,1.13371557,650.75,649.43,0.30796236]
[1740016443529,1.13371557,651.1,649.43,0.30796236]
[1740016443720,0.30717719,651.09,649.43,0.30796236]
[1740016443921,0.28250617,651.08,649.43,0.30796236]
[1740016444124,0.30718663,651.07,649.43,0.30796236]
[1740016444425,0.28250617,651.06,649.43,0.30796236]
[1740016444629,0.30719606,651.05,649.43,0.30796236]
[1740016444927,0.28250617,651.04,649.43,0.30796236]
[1740016445520,0.30719606,651.05,649.43,0.30796236]
[1740016445725,0.3072055,651.03,649.43,0.30796236]
[1740016448332,0.28244168,651.02,649.43,0.30796236]
[1740016449130,0.28244643,651.01,649.43,0.30796236]
[1740016449327,0.28244643,651.0,649.43,0.30796236]
[1740016449524,0.28249299,651.02,649.43,0.30796236]
[1740016449728,0.30721494,651.01,649.43,0.30796236]
[1740016449929,0.28249299,651.0,649.43,0.30796236]
[1740016450127,0.30722438,650.99,649.43,0.30796236]
[1740016450332,0.28249299,650.98,649.43,0.30796236]
[1740016450531,0.30723382,650.97,649.43,0.30796236]
[1740016481665,0.30723382,650.97,649.64,1.36583643]
[1740016481964,0.30723382,650.97,649.66,0.30785333]
[1740016498775,0.28246209,650.96,649.66,0.30785333]
[1740016499477,0.30723382,650.97,649.66,0.30785333]
[1740016509582,0.28256993,650.96,649.66,0.30785333]
[1740016509785,0.30724797,650.94,649.66,0.30785333]
[1740016510084,0.28256993,650.93,649.66,0.30785333]
[1740016510379,0.30726214,650.91,649.66,0.30785333]
[1740016510586,0.28256993,650.9,649.66,0.30785333]
[1740016510785,0.30727158,650.89,649.66,0.30785333]
[1740016510985,0.28256993,650.88,649.66,0.30785333]
[1740016511191,0.28256993,650.88,649.61,1.60532031]
[1740016511379,0.30728574,650.86,649.61,1.60532031]
[1740016511583,0.28256993,650.85,649.61,1.60532031]
[1740016511784,0.3072999,650.83,649.61,1.60532031]
[1740016511986,0.28256993,650.82,649.61,1.60532031]
[1740016512186,0.30730935,650.81,649.61,1.60532031]
[1740016512584,0.28263225,650.8,649.61,1.60532031]
[1740016512787,0.30731879,650.79,648.38,1.36583643]
[1740016513091,0.28263225,650.78,649.49,1.6060859]
[1740016513292,0.30732824,650.77,648.5,0.308404]
[1740016513494,0.28263225,650.76,648.5,0.308404]
[1740016513689,0.28263225,650.76,649.49,1.60616002]
[1740016513897,0.28263225,650.76,648.5,0.308404]
[1740016514096,0.28263225,650.76,649.49,1.60594384]
[1740016514389,0.28263225,650.76,649.5,0.30792917]
[1740016514693,0.30732824,650.77,649.5,0.30792917]
[1740016531608,0.28266631,650.76,649.5,0.30792917]
[1740016531809,0.30733768,650.75,649.5,0.30792917]
[1740016532109,0.28266631,650.74,649.5,0.30792917]
[1740016532304,0.30734713,650.73,649.5,0.30792917]
[1740016532509,0.28266631,650.72,649.5,0.30792917]
[1740016532706,0.30735657,650.71,649.5,0.30792917]
[1740016532902,0.28266631,650.7,649.5,0.30792917]
[1740016533104,0.30736602,650.69,649.5,0.30792917]
[1740016533408,0.28266631,650.68,649.5,0.30792917]
[1740016534309,0.30737547,650.67,649.5,0.30792917]
[1740016534510,0.28266631,650.66,649.5,0.30792917]
[1740016534710,0.30738492,650.65,649.5,0.30792917]
[1740016535009,0.28266631,650.64,649.5,0.30792917]
[1740016535210,0.30739437,650.63,649.5,0.30792917]
[1740016535409,0.28266631,650.62,649.5,0.30792917]
[1740016535709,0.30740382,650.61,649.5,0.30792917]
[1740016536211,0.28267969,650.6,649.5,0.30792917]
[1740016536513,0.30741327,650.59,649.5,0.30792917]
[1740016536711,0.28267816,650.58,649.5,0.30792917]
[1740016537705,0.30742272,650.57,649.5,0.30792917]
[1740016537910,0.28267816,650.56,649.5,0.30792917]
[1740016538110,0.5901056,650.56,649.5,0.30792917]
[1740016538312,0.28267816,650.55,649.5,0.30792917]
[1740016538510,0.30742744,650.56,649.5,0.30792917]
[1740016548220,0.28264338,650.55,649.5,0.30792917]
[1740016550423,0.30742744,650.56,649.5,0.30792917]
[1740016550620,0.2826438,650.55,649.5,0.30792917]
[1740016554727,0.59007597,650.55,649.5,0.30792917]
[1740016555030,0.2826438,650.54,649.5,0.30792917]
[1740016555225,0.2826438,650.54,649.42,1.60634537]
[1740016555630,0.30744162,650.53,649.42,1.60634537]
[1740016555829,0.2826438,650.52,649.42,1.60634537]
[1740016556131,0.30745107,650.51,649.42,1.60634537]
[1740016556329,0.2826438,650.5,649.42,1.60634537]
[1740016556529,0.30746052,650.49,649.42,1.60634537]
[1740016560933,0.28263056,650.48,649.42,1.60634537]
[1740016561133,0.30746052,650.49,649.43,0.30796236]
[1740016570439,1.13371557,650.93,649.43,0.30796236]
[1740016570637,0.58983098,650.92,649.43,0.30796236]
[1740016570834,0.5898357,650.91,649.43,0.30796236]
[1740016571038,0.58984042,650.9,649.43,0.30796236]
[1740016571239,0.28257356,650.89,649.43,0.30796236]
[1740016575838,0.28254598,650.88,649.43,0.30796236]
[1740016576043,0.28254598,650.87,649.43,0.30796236]
[1740016576443,0.28254598,650.86,649.43,0.30796236]
[1740016576637,0.28254598,650.89,649.43,0.30796236]
[1740016576838,0.28254598,650.88,649.43,0.30796236]
[1740016577041,0.28254598,650.87,649.43,0.30796236]
[1740016577241,0.28254598,650.86,649.43,0.30796236]
[1740016577638,0.30726686,650.9,649.43,0.30796236]
[1740016577639,0.28254598,650.85,649.43,0.30796236]
[1740016577843,0.28254598,650.84,649.43,0.30796236]
[1740016578046,0.28254598,650.89,649.43,0.30796236]
[1740016578345,0.28254598,650.88,649.43,0.30796236]
[1740016578644,0.28254598,650.87,649.43,0.30796236]
[1740016578845,0.28254598,650.89,649.43,0.30796236]
[1740016579044,0.28254598,650.88,649.43,0.30796236]
[1740016579246,0.28254598,650.89,649.43,0.30796236]
[1740016580949,0.30726686,650.9,649.43,0.30796236]
[1740016581148,0.28254167,650.89,649.43,0.30796236]
[1740016582744,0.28253869,650.88,649.43,0.30796236]
[1740016582948,0.28253869,650.87,649.43,0.30796236]
[1740016583148,0.28253869,650.86,649.43,0.30796236]
[1740016583343,0.28253869,650.89,649.43,0.30796236]
[1740016584448,0.2825425,650.88,649.43,0.30796236]
[1740016584646,0.2825425,650.89,649.43,0.30796236]
[1740016584849,0.2825425,650.88,649.43,0.30796236]
[1740016585145,0.2825425,650.87,649.43,0.30796236]
[1740016585343,0.2825425,650.86,649.43,0.30796236]
[1740016585550,0.2825425,650.85,649.43,0.30796236]
[1740016585745,0.2825425,650.84,649.43,0.30796236]
[1740016585947,0.2825425,650.83,649.43,0.30796236]
[1740016586148,0.2825425,650.82,649.43,0.30796236]
[1740016586348,0.2825425,650.81,649.43,0.30796236]
[1740016586549,0.2825425,650.8,649.43,0.30796236]
[1740016586747,0.2825425,650.79,649.43,0.30796236]
[1740016587047,0.2825425,650.78,649.43,0.30796236]
[1740016587248,0.2825425,650.89,649.43,0.30796236]
[1740016587447,0.30726686,650.9,649.43,0.30796236]
[1740016588553,0.28252824,650.89,649.43,0.30796236]
[1740016588849,0.30726686,650.9,649.43,0.30796236]
[1740016589053,0.28252218,650.89,649.43,0.30796236]
[1740016594055,0.28248939,650.88,649.43,0.30796236]
[1740016594254,0.28248939,650.89,649.43,0.30796236]
[1740016594458,0.28248939,650.88,649.43,0.30796236]
[1740016594660,0.28248939,650.89,649.43,0.30796236]
[1740016594859,0.28248939,650.88,649.43,0.30796236]
[1740016595055,0.28248939,650.89,649.43,0.30796236]
[1740016595255,0.28248939,650.88,649.43,0.30796236]
[1740016595560,0.28248939,650.87,649.43,0.30796236]
[1740016595761,0.28248059,650.86,649.43,0.30796236]
[1740016595956,0.30726686,650.9,649.43,0.30796236]
[1740016603361,0.28245726,650.89,649.43,0.30796236]
[1740016604165,0.30726686,650.9,649.43,0.30796236]
[1740016604364,0.28245647,650.89,649.43,0.30796236]
[1740016604864,0.30726686,650.9,649.43,0.30796236]
[1740016606361,0.28244991,650.89,649.43,0.30796236]
[1740016606757,0.30726686,650.9,649.43,0.30796236]
[1740016625478,0.28248409,650.89,649.43,0.30796236]
[1740016625980,0.30726686,650.9,649.43,0.30796236]
[1740016626277,0.28248884,650.89,649.43,0.30796236]
[1740016627576,0.30726686,650.9,649.43,0.30796236]
[1740016646689,0.28251816,650.89,649.43,0.30796236]
[1740016646890,0.30726686,650.9,649.43,0.30796236]
[1740016647091,0.28250373,650.89,649.43,0.30796236]
[1740016655395,0.30726686,650.9,649.43,0.30796236]
[1740016655997,0.30726686,650.9,649.43,3.31822584]
[1740016660005,0.30726686,650.9,649.43,0.30796236]
[1740016665308,0.2825204,650.89,649.43,0.30796236]
[1740016666402,0.30726686,650.9,649.43,0.30796236]
[1740016677411,0.28250656,650.89,649.43,0.30796236]
[1740016679607,0.30726686,650.9,649.43,0.30796236]
[1740016699631,0.2825836,650.89,649.43,0.30796236]
[1740016699835,0.3072763,650.88,649.43,0.30796236]
[1740016700028,0.2825836,650.87,649.43,0.30796236]
[1740016700333,0.30728574,650.86,649.43,0.30796236]
[1740016700729,0.28258834,650.85,649.43,0.30796236]
[1740016700928,0.30729518,650.84,649.43,0.30796236]
[1740016701129,0.28258834,650.83,649.43,0.30796236]
[1740016701430,0.30730463,650.82,649.43,0.30796236]
[1740016701632,0.28258834,650.81,649.43,0.30796236]
[1740016701834,0.30731407,650.8,649.43,0.30796236]
[1740016702035,0.28258834,650.79,649.43,0.30796236]
[1740016702336,0.30732351,650.78,649.43,0.30796236]
[1740016702533,0.28258834,650.77,649.43,0.30796236]
[1740016702729,0.30733296,650.76,649.43,0.30796236]
[1740016702933,0.28258834,650.75,649.43,0.30796236]
[1740016703136,0.30734241,650.74,649.43,0.30796236]
[1740016703334,0.28258834,650.73,649.43,0.30796236]
[1740016705034,0.30735185,650.72,649.43,0.30796236]
[1740016705336,0.28258834,650.71,649.43,0.30796236]
[1740016705536,0.3073613,650.7,649.43,0.30796236]
[1740016705738,0.28258834,650.69,649.43,0.30796236]
[1740016705937,0.30737075,650.68,649.43,0.30796236]
[1740016706136,0.28258834,650.67,649.43,0.30796236]
[1740016706337,0.30738019,650.66,649.43,0.30796236]
[1740016706532,0.28258834,650.65,649.43,0.30796236]
[1740016706937,0.58997326,650.65,649.43,0.30796236]
[1740016707235,0.58997798,650.64,649.43,0.30796236]
[1740016707540,0.58998271,650.63,649.43,0.30796236]
[1740016707738,0.58998743,650.62,649.43,0.30796236]
[1740016708038,0.58999216,650.61,649.43,0.30796236]
[1740016708233,0.58999688,650.6,649.43,0.30796236]
[1740016708435,0.59000161,650.59,649.36,1.60648132]
[1740016708737,0.59000633,650.58,649.36,1.60648132]
[1740016708938,0.28258834,650.57,649.36,1.60648132]
[1740016709136,0.28277039,650.56,649.36,1.60648132]
[1740016709336,0.30743217,650.55,649.36,1.60648132]
[1740016709537,0.28277039,650.54,649.36,1.60648132]
[1740016709732,0.30744162,650.53,649.36,1.60648132]
[1740016709938,0.28277039,650.52,649.36,1.60648132]
[1740016710140,0.30745107,650.51,649.36,1.60648132]
[1740016710339,0.28277039,650.5,649.36,1.60648132]
[1740016710537,0.30746052,650.49,649.36,1.60648132]
[1740016717545,0.28271665,650.48,649.36,1.60648132]
[1740016719247,0.28272458,650.47,649.36,1.60648132]
[1740016719445,0.28272458,650.48,649.36,1.60648132]
[1740016719646,0.28272458,650.47,649.36,1.60648132]
[1740016719846,0.28272458,650.48,649.36,1.60648132]
[1740016720049,0.28272458,650.47,649.36,1.60648132]
[1740016720249,0.28272458,650.46,649.36,1.60648132]
[1740016720444,0.28272458,650.45,649.36,1.60648132]
[1740016720643,0.28272458,650.48,649.36,1.60648132]
[1740016720844,0.28272458,650.47,649.36,1.60648132]
[1740016721047,0.28272458,650.46,649.36,1.60648132]
[1740016721246,0.28272458,650.45,649.36,1.60648132]
[1740016721443,0.28272458,650.44,649.36,1.60648132]
[1740016721646,0.28272458,650.48,649.36,1.60648132]
[1740016721846,0.28272458,650.47,649.36,1.60648132]
[1740016722046,0.28272458,650.46,649.36,1.60648132]
[1740016722351,0.30747943,650.45,649.36,1.60648132]
[1740016722553,0.28274217,650.44,649.36,1.60648132]
[1740016722752,0.59022633,650.44,649.36,1.60648132]
[1740016722953,0.28274217,650.43,649.36,1.60648132]
[1740016732154,0.30749361,650.42,648.09,1.38012316]
[1740016732358,0.30749361,650.42,649.25,1.60676565]
[1740016732854,0.30749361,650.42,648.2,0.30854674]
[1740016733054,0.30749361,650.42,649.25,1.60655549]
[1740016733259,0.30749361,650.42,648.2,0.30854674]
[1740016733559,0.30749361,650.42,649.25,1.60661729]
[1740016733759,0.28281474,650.41,648.2,0.30854674]
[1740016733956,0.30750307,650.4,648.2,0.30854674]
[1740016734160,0.28281474,650.39,649.15,1.60671002]
[1740016734360,0.28281474,650.39,648.2,0.30854674]
[1740016734561,0.28281474,650.39,648.21,1.60773685]
[1740016735657,0.30751725,650.37,648.31,0.30849439]
[1740016735958,0.28281474,650.36,648.31,0.30849439]
[1740016736161,0.30753144,650.34,648.31,0.30849439]
[1740016736359,0.28281474,650.33,648.31,0.30849439]
[1740016738662,0.3075409,650.32,648.31,0.30849439]
[1740016738961,0.28281474,650.31,648.31,0.30849439]
[1740016739261,0.30755036,650.3,648.31,0.30849439]
[1740016739466,0.28281474,650.29,648.31,0.30849439]
[1740016739657,0.30755982,650.28,648.31,0.30849439]
[1740016739858,0.28281474,650.27,648.31,0.30849439]
[1740016740163,0.30756927,650.26,648.31,0.30849439]
[1740016740358,0.28281474,650.25,648.31,0.30849439]
[1740016743961,0.28281474,650.25,648.39,1.38012316]
[1740016744165,0.28281474,650.25,648.41,0.30844681]
[1740016745363,0.59038874,650.25,648.41,0.30844681]
[1740016745563,0.28281474,650.24,648.41,0.30844681]
[1740016746767,0.28279546,650.23,648.41,0.30844681]
[1740016746967,0.28279546,650.24,648.41,0.30844681]
[1740016747168,0.28279546,650.23,648.41,0.30844681]
[1740016747368,0.28279546,650.22,648.41,0.30844681]
[1740016747567,0.28279546,650.21,648.41,0.30844681]
[1740016747767,0.28279546,650.24,648.41,0.30844681]
[1740016748067,0.28279546,650.23,648.41,0.30844681]
[1740016748262,0.28279546,650.24,648.41,0.30844681]
[1740016748463,0.28279546,650.23,648.41,0.30844681]
[1740016748667,0.28279546,650.24,648.41,0.30844681]
[1740016748970,0.28279631,650.23,648.41,0.30844681]
[1740016749165,0.28279631,650.22,648.41,0.30844681]
[1740016749372,0.28279631,650.21,648.41,0.30844681]
[1740016749671,0.28279631,650.2,648.41,0.30844681]
[1740016749872,0.307574,650.25,648.41,0.30844681]